[Event "IIFL Wealth  4th Mumbai Junior U-13"]
[Site "Mumbai"]
[Date "2019.01.05"]
[Round "7"]
[White "Shah Viha"]
[Black "Jain Hitansh"]
[Result "1-0"]
[ECO "B12"]
[WhiteElo "1212"]
[BlackElo "1008"]
[Annotator "NA RC"]
[PlyCount "69"]
[EventDate "2018.12.30"]
[EventType "swiss"]
[EventCountry "IND"]
[SourceTitle "playchess.com"]
[Source "ChessBase"]
[SourceQuality "1"]
[TimeControl "40/5400+30:1800+30"]

1. e4 {[%emt 0:00:00]} c6 {[%emt 0:01:33]} 2. d4 {[%emt 0:00:00]} d5 {[%emt 0:00:20]} 3. e5 {[%emt 0:00:02]} Bf5 {[%emt 0:00:10]} 4. h4 {[%emt 0:00:10]} h6 {[%emt 0:03:02]} 5. g4 {[%emt 0:00:22]} Be4 {[%emt 0:00:23]} 6. f3 {[%emt 0:00:36]} Bg6 {[%emt 0:00:44]} 7. e6 {[%emt 0:00:37]} Qd6 {[%emt 0:01:59]} 8. exf7+ {[%emt 0:01:46]} Bxf7 {[%emt 0:00:28]} 9. Ne2 {[%emt 0:01:24]} Nd7 {[%emt 0:02:04]} 10. Bf4 {[%emt 0:01:39]} Qb4+ {[%emt 0:01:32]} 11. Bd2 {[%emt 0:01:13]} Qb6 {[%emt 0:02:30]} 12. Bc3 {[%emt 0:02:16]} e6 {[%emt 0:01:36]} 13. Nd2 {[%emt 0:01:09]} Bd6 {[%emt 0:01:37]} 14. Nb3 {[%emt 0:00:31]} Ne7 {[%emt 0:05:13]} 15. a3 {[%emt 0:02:25]} Qc7 {[%emt 0:01:17]} 16. Qd2 {[%emt 0:02:27]} Ng6 {[%emt 0:02:25]} 17. O-O-O {[%emt 0:02:58]} Nf4 {[%emt 0:02:18]} 18. Kb1 {[%emt 0:01:46]} Nxe2 {[%emt 0:02:10]} 19. Qxe2 {[%emt 0:00:23]} Nf6 {[%emt 0:02:47]} 20. Bh3 {[%emt 0:02:53]} Qe7 {[%emt 0:03:44]} 21. g5 {[%emt 0:12:19]} hxg5 {[%emt 0:01:36]} 22. hxg5 {[%emt 0:00:33]} Nh5 {[%emt 0:03:28]} 23. g6 {[%emt 0:03:03]} Bxg6 {[%emt 0:02:51]} 24. Bxe6 {[%emt 0:03:50]} Qxe6 {[%emt 0:00:30]} 25. Qxe6+ {[%emt 0:00:30] Bf7 [%clk 0:51:22] Rde1+ Bxe6 [%clk 0:48:42] Rxe6+ [%clk 0:57:36] Kd7 [%clk 0:48:58] Rg6 [%clk 0:56:16]} Be7 {[%emt 0:13:31]} 26. Nc1 {[%emt 0:02:46] Bf6 [%clk 0:39:05] Nd3 [%clk 0:53:43]} b6 {[%emt 0:07:24]} 27. f4 {[%emt 0:24:37] Ke7 Re1+ [%clk 0:50:19] Kf7 [%clk 0:29:01] Rg4 [%clk 0:47:17] Rae8 [%clk 0:24:57] Ne5+ [%clk 0:38:29] Bxe5 [%clk 0:24:37] fxe5 [%clk 0:37:01]} c5 {[%emt 0:15:00] Rf1+ Kg8 [%clk 0:18:40] Rh1 [%clk 0:34:07] Kf7 [%clk 0:13:53] Rg5 [%clk 0:33:42] g6 [%clk 0:13:53] Rf1+ [%clk 0:34:00] Kg7 [%clk 0:13:51] e6 [%clk 1:02:26] Kh6 [%clk 0:42:55] Rxd5 [%clk 1:00:30] Rxe6 [%clk 0:41:44]} 28. dxc5 {[%emt 0:00:00]} Rc8 {[%emt 0:00:00]} 29. Bd2 {[%emt 0:00:00] Kg7 [%clk 0:41:49] Rd7+ [%clk 1:00:00] Kg8 [%clk 0:42:08] Rd6 [%clk 0:58:40] Rxd6 [%clk 0:41:55] cxd6 [%clk 0:59:03]} Rd8 {[%emt 0:00:00] Re1 [%clk 0:51:25] Rxd6 [%clk 0:42:10]} 30. Bb4 {[%emt 0:00:00] Rd8 [%clk 0:41:32] Re6 [%clk 0:51:23]} a5 {[%emt 0:00:00]} 31. Bc3 {[%emt 0:00:00]} Rb8 {[%emt 0:00:00] Rxg6+ [%clk 0:51:36] Kf7 [%clk 0:38:16] Rg5 [%clk 0:51:52] Nf4 [%clk 0:37:09] Rf5+ [%clk 0:52:05] Ke6 [%clk 0:37:17] Rxf4 [%clk 0:52:29] Re8 [%clk 0:36:13] Re4+ [%clk 0:52:16] Kf7 [%clk 0:36:37] Rxe8 [%clk 0:52:39] Kxe8 [%clk 0:37:02]} 32. Ka2 {[%emt 0:00:00]} a4 {[%emt 0:00:00]} 33. b3 {[%emt 0:00:00]} b5 {[%emt 0:00:00]} 34. bxa4 {[%emt 0:00:00]} bxa4 {[%emt 0:00:00]} 35. Bb4 {[%emt 0:00:00] Kd7 [%clk 0:38:30]} 1-0

[Event "IIFL Wealth  4th Mumbai Junior U-13"]
[Site "Mumbai"]
[Date "2019.01.05"]
[Round "7"]
[White "Suhaani Lohia"]
[Black "Borate Tanvi"]
[Result "0-1"]
[ECO "C55"]
[WhiteElo "1200"]
[BlackElo "1035"]
[Annotator "NA RC"]
[PlyCount "70"]
[EventDate "2018.12.30"]
[EventType "swiss"]
[EventCountry "IND"]
[SourceTitle "playchess.com"]
[Source "ChessBase"]
[SourceQuality "1"]
[TimeControl "40/5400+30:1800+30"]

1. e4 {[%emt 0:04:55]} e5 {[%emt 0:00:00]} 2. Nf3 {[%emt 0:00:26]} Nc6 {[%emt 0:00:00]} 3. d4 {[%emt 0:01:09]} exd4 {[%emt 0:00:04]} 4. Bc4 {[%emt 0:00:09]} Nf6 {[%emt 0:00:08]} 5. e5 {[%emt 0:00:16]} d5 {[%emt 0:00:08]} 6. Bb5 {[%emt 0:00:18]} Ne4 {[%emt 0:02:21]} 7. Nxd4 {[%emt 0:05:16]} Bd7 {[%emt 0:03:25]} 8. Bxc6 {[%emt 0:02:35]} Bxc6 {[%emt 0:01:24]} 9. O-O {[%emt 0:08:51]} Bc5 {[%emt 0:05:12]} 10. f3 {[%emt 0:02:33]} Ng5 {[%emt 0:02:01]} 11. f4 {[%emt 0:01:04]} Ne4 {[%emt 0:03:23]} 12. Be3 {[%emt 0:01:25]} O-O {[%emt 0:07:28]} 13. Nd2 {[%emt 0:01:54]} Bxd4 {[%emt 0:05:07]} 14. Bxd4 {[%emt 0:00:55]} Nxd2 {[%emt 0:01:08]} 15. Qxd2 {[%emt 0:00:09]} Bb5 {[%emt 0:01:30]} 16. Rf3 {[%emt 0:03:16]} Qe7 {[%emt 0:01:13]} 17. Rg3 {[%emt 0:03:22]} c5 {[%emt 0:01:05]} 18. Bf2 {[%emt 0:03:00]} d4 {[%emt 0:01:32]} 19. Re1 {[%emt 0:01:42]} Kh8 {[%emt 0:12:38]} 20. Rh3 {[%emt 0:06:41]} Qe6 {[%emt 0:02:54]} 21. Qd1 {[%emt 0:06:22]} Bd7 {[%emt 0:08:57]} 22. Qh5 {[%emt 0:20:54]} Qf5 {[%emt 0:02:10]} 23. Rc1 {[%emt 0:07:22]} Rac8 {[%emt 0:03:26]} 24. Qxf5 {[%emt 0:02:01]} Bxf5 {[%emt 0:00:09]} 25. Rb3 {[%emt 0:02:44]} b6 {[%emt 0:03:10]} 26. Ra3 {[%emt 0:01:35]} Rc7 {[%emt 0:00:21]} 27. c3 {[%emt 0:01:57]} d3 {[%emt 0:01:31]} 28. Be3 {[%emt 0:00:52]} f6 {[%emt 0:05:05]} 29. exf6 {[%emt 0:02:43]} Rxf6 {[%emt 0:00:15]} 30. h3 {[%emt 0:02:03]} h5 {[%emt 0:02:12]} 31. Kf2 {[%emt 0:01:40]} Rd7 {[%emt 0:01:51]} 32. Rd1 {[%emt 0:00:27]} Rfd6 {[%emt 0:01:35]} 33. Rd2 {[%emt 0:00:46]} Re6 {[%emt 0:00:47]} 34. Rd1 {[%emt 0:01:52]} Rde7 {[%emt 0:00:35]} 35. Re1 {[%emt 0:00:19]} Rxe3 {[%emt 0:07:14] Ke2} 0-1

[Event "IIFL Wealth  4th Mumbai Junior U-13"]
[Site "Mumbai"]
[Date "2019.01.05"]
[Round "7"]
[White "Aarav Bhavin Mehta"]
[Black "Balkawade Sai"]
[Result "0-1"]
[ECO "D05"]
[WhiteElo "1166"]
[BlackElo "1482"]
[Annotator "NA"]
[PlyCount "93"]
[EventDate "2018.12.30"]
[EventType "swiss"]
[EventCountry "IND"]
[SourceTitle "playchess.com"]
[Source "ChessBase"]
[SourceQuality "1"]
[TimeControl "40/5400+30:1800+30"]

1. d4 d5 2. Nf3 Nf6 3. e3 e6 4. Bd3 c5 5. b3 Nc6 6. O-O Be7 7. Bb2 Nb4 8. Be2 O-O 9. a3 Nc6 10. Ne5 Ne8 11. Bd3 Nxe5 12. dxe5 f5 13. f4 Nc7 14. Qe2 Bd7 15. a4 a6 16. c4 Bc6 17. Rd1 Qd7 18. cxd5 Bxd5 19. Bc4 Qc6 20. Bxd5 Nxd5 21. Nc3 Nxc3 22. Bxc3 Rfd8 23. Rac1 b5 24. a5 Rxd1+ 25. Rxd1 b4 26. Bb2 Qb5 27. Qf3 Rd8 28. Ra1 Rd3 29. Qe2 Qd7 30. Rb1 Qd5 31. Ba1 Rd2 32. Qf1 Ra2 33. Qf3 Qxf3 34. gxf3 Rxa5 35. e4 g6 36. Kf2 Ra2+ 37. Bb2 Kf8 38. Ke3 Ke8 39. Kd3 Kd7 40. Kc4 Kc6 41. h3 a5 42. exf5 gxf5 43. Kd3 Kb5 44. Kc2 c4 45. bxc4+ Kxc4 46. Rd1 Bc5 47. Rd3 0-1

[Event "IIFL Wealth  4th Mumbai Junior U-13"]
[Site "Mumbai"]
[Date "2019.01.05"]
[Round "7"]
[White "Ks Saikrishna"]
[Black "Manusha, D M Nipun"]
[Result "1/2-1/2"]
[ECO "C28"]
[WhiteElo "1138"]
[BlackElo "1214"]
[Annotator "NA"]
[PlyCount "62"]
[EventDate "2018.12.30"]
[EventType "swiss"]
[EventCountry "IND"]
[SourceTitle "playchess.com"]
[Source "ChessBase"]
[SourceQuality "1"]
[TimeControl "40/5400+30:1800+30"]

1. e4 {[%emt 0:00:00]} e5 {[%emt 0:00:00]} 2. Nc3 {[%emt 0:00:00]} Nf6 {[%emt 0:00:00]} 3. Bc4 {[%emt 0:00:00]} Nc6 {[%emt 0:00:33]} 4. d3 {[%emt 0:00:14]} d6 {[%emt 0:00:43]} 5. f4 {[%emt 0:00:34]} Be7 {[%emt 0:00:35]} 6. Nf3 {[%emt 0:00:15]} Bg4 {[%emt 0:00:54]} 7. h3 {[%emt 0:00:08]} Bxf3 {[%emt 0:00:17]} 8. Qxf3 {[%emt 0:00:02]} Qd7 {[%emt 0:04:53]} 9. f5 {[%emt 0:01:18]} Nd4 {[%emt 0:07:34]} 10. Qf2 {[%emt 0:00:36]} b5 {[%emt 0:01:52]} 11. Bb3 {[%emt 0:01:31]} Nxb3 {[%emt 0:00:06]} 12. axb3 {[%emt 0:00:12]} a6 {[%emt 0:00:08]} 13. Be3 {[%emt 0:02:46]} c6 {[%emt 0:03:24]} 14. g4 {[%emt 0:07:07]} d5 {[%emt 0:03:01]} 15. exd5 {[%emt 0:06:49]} cxd5 {[%emt 0:00:27]} 16. Bg5 {[%emt 0:00:58]} Nxg4 {[%emt 0:01:47]} 17. hxg4 {[%emt 0:00:34]} Bxg5 {[%emt 0:00:04]} 18. Qc5 {[%emt 0:02:25]} Rc8 {[%emt 0:00:42]} 19. Qb6 {[%emt 0:01:48]} Rc6 {[%emt 0:02:56]} 20. Qb8+ {[%emt 0:02:12]} Qc8 {[%emt 0:00:50]} 21. Qxe5+ {[%emt 0:00:16]} Kf8 {[%emt 0:01:07]} 22. Qxd5 {[%emt 0:01:17]} Rxc3 {[%emt 0:04:29]} 23. bxc3 {[%emt 0:05:38]} Qxc3+ {[%emt 0:00:16]} 24. Kf2 {[%emt 0:01:06]} Qd2+ {[%emt 0:01:49]} 25. Kg3 {[%emt 0:02:45]} Bf4+ {[%emt 0:00:29]} 26. Kf3 {[%emt 0:02:20]} Qe3+ {[%emt 0:00:24]} 27. Kg2 {[%emt 0:01:34]} Qe2+ {[%emt 0:00:31]} 28. Kh3 {[%emt 0:00:39]} Qe3+ {[%emt 0:00:13]} 29. Kg2 {[%emt 0:00:36]} Qe2+ {[%emt 0:00:10]} 30. Kh3 {[%emt 0:01:06]} Qe3+ {[%emt 0:00:07]} 31. Kg2 {[%emt 0:01:00]} Qe2+ {[%emt 0:00:10]} 1/2-1/2

[Event "IIFL Wealth  4th Mumbai Junior U-13"]
[Site "Mumbai"]
[Date "2019.01.05"]
[Round "7"]
[White "Shah, Viraj Bhaveshu"]
[Black "Varshita Jain"]
[Result "0-1"]
[ECO "C42"]
[WhiteElo "1119"]
[BlackElo "1461"]
[Annotator "NA RC"]
[PlyCount "76"]
[EventDate "2018.12.30"]
[EventType "swiss"]
[EventCountry "IND"]
[SourceTitle "playchess.com"]
[Source "ChessBase"]
[SourceQuality "1"]
[TimeControl "40/5400+30:1800+30"]

1. e4 {[%emt 0:00:00]} e5 {[%emt 0:00:00]} 2. Nf3 {[%emt 0:00:00]} Nf6 {[%emt 0:00:00]} 3. Nxe5 {[%emt 0:00:00]} d6 {[%emt 0:00:00]} 4. Nf3 {[%emt 0:00:01]} Nxe4 {[%emt 0:00:00]} 5. Nc3 {[%emt 0:00:09]} Nxc3 {[%emt 0:00:02]} 6. dxc3 {[%emt 0:00:08]} Be7 {[%emt 0:00:07]} 7. Be3 {[%emt 0:00:13]} O-O {[%emt 0:00:14]} 8. Qd2 {[%emt 0:00:05]} d5 {[%emt 0:00:24]} 9. O-O-O {[%emt 0:00:34]} c6 {[%emt 0:00:20]} 10. Bd3 {[%emt 0:00:37]} h6 {[%emt 0:01:44]} 11. Bxh6 {[%emt 0:06:18]} Be6 {[%emt 0:16:25]} 12. Kb1 {[%emt 0:01:05]} c5 {[%emt 0:22:45]} 13. Be3 {[%emt 0:12:10]} c4 {[%emt 0:07:06]} 14. Be2 {[%emt 0:00:25]} a5 {[%emt 0:03:41]} 15. h4 {[%emt 0:00:41]} b5 {[%emt 0:06:32]} 16. g4 {[%emt 0:00:59]} b4 {[%emt 0:10:22]} 17. h5 {[%emt 0:04:14]} bxc3 {[%emt 0:13:42]} 18. Qxc3 {[%emt 0:00:32]} Bb4 {[%emt 0:00:47]} 19. Qe5 {[%emt 0:03:17]} Bd6 {[%emt 0:05:47]} 20. Qc3 {[%emt 0:01:16]} Bb4 {[%emt 0:00:27]} 21. Qe5 {[%emt 0:03:04]} Bd6 {[%emt 0:00:15]} 22. Qd4 {[%emt 0:01:09]} Nc6 {[%emt 0:00:30]} 23. Qd2 {[%emt 0:00:18]} Bxg4 {[%emt 0:06:34]} 24. Rdg1 {[%emt 0:00:30]} Be6 {[%emt 0:01:33]} 25. h6 {[%emt 0:00:17]} g6 {[%emt 0:00:16]} 26. h7+ {[%emt 0:00:48]} Kh8 {[%emt 0:01:00]} 27. Ng5 {[%emt 0:07:21]} Qf6 {[%emt 0:01:22]} 28. Bxc4 {[%emt 0:13:31]} dxc4 {[%emt 0:00:48]} 29. Qxd6 {[%emt 0:01:14]} Rab8 {[%emt 0:00:36]} 30. c3 {[%emt 0:05:20]} Bf5+ {[%emt 0:00:31]} 31. Ne4 {[%emt 0:01:21]} Bxe4+ {[%emt 0:00:26]} 32. Kc1 {[%emt 0:01:45]} Qxd6 {[%emt 0:00:15]} 33. Rd1 {[%emt 0:02:22]} Qxd1+ {[%emt 0:00:16]} 34. Rxd1 {[%emt 0:00:08]} Kxh7 {[%emt 0:00:17]} 35. Rf1 {[%emt 0:01:06]} Ne5 {[%emt 0:00:23]} 36. Rg1 {[%emt 0:01:48]} Nd3+ {[%emt 0:00:23]} 37. Kd2 {[%emt 0:00:21]} Rxb2+ {[%emt 0:00:08]} 38. Kd1 {[%emt 0:00:16]} Bf3# {[%emt 0:00:05]} 0-1

[Event "IIFL Wealth  4th Mumbai Junior U-13"]
[Site "Mumbai"]
[Date "2019.01.05"]
[Round "7"]
[White "Shreyas Ravindra Patil"]
[Black "Dande Vyankatesh S"]
[Result "0-1"]
[ECO "C42"]
[WhiteElo "1110"]
[BlackElo "1418"]
[Annotator "NA RC"]
[PlyCount "132"]
[EventDate "2018.12.30"]
[EventType "swiss"]
[EventCountry "IND"]
[SourceTitle "playchess.com"]
[Source "ChessBase"]
[SourceQuality "1"]
[TimeControl "40/5400+30:1800+30"]

1. e4 {[%emt 0:00:00]} e5 {[%emt 0:00:00]} 2. Nf3 {[%emt 0:00:00]} Nf6 {[%emt 0:00:00]} 3. Nxe5 {[%emt 0:00:00]} d6 {[%emt 0:00:00]} 4. Nf3 {[%emt 0:00:00]} Nxe4 {[%emt 0:00:00]} 5. d3 {[%emt 0:00:00]} Nf6 {[%emt 0:00:02]} 6. Bg5 {[%emt 0:00:00]} Be7 {[%emt 0:01:11]} 7. Be2 {[%emt 0:00:00]} Nc6 {[%emt 0:00:12]} 8. Nbd2 {[%emt 0:00:00]} Be6 {[%emt 0:00:10]} 9. O-O {[%emt 0:00:08]} h6 {[%emt 0:00:29]} 10. Bh4 {[%emt 0:00:04]} Ng4 {[%emt 0:10:44]} 11. Bxe7 {[%emt 0:00:39]} Qxe7 {[%emt 0:00:03]} 12. Re1 {[%emt 0:00:56]} h5 {[%emt 0:06:01]} 13. Bf1 {[%emt 0:01:27]} O-O-O {[%emt 0:03:00]} 14. d4 {[%emt 0:01:18]} d5 {[%emt 0:01:00]} 15. h3 {[%emt 0:03:26]} Qf6 {[%emt 0:08:15]} 16. hxg4 {[%emt 0:04:57]} hxg4 {[%emt 0:00:46]} 17. Bb5 {[%emt 0:00:41]} gxf3 {[%emt 0:04:11]} 18. Qxf3 {[%emt 0:00:38]} Nxd4 {[%emt 0:00:30]} 19. Qxf6 {[%emt 0:00:14]} gxf6 {[%emt 0:00:01]} 20. Bd3 {[%emt 0:00:17]} Rh6 {[%emt 0:00:23]} 21. c3 {[%emt 0:00:19]} Rdh8 {[%emt 0:00:36]} 22. f3 {[%emt 0:00:05]} Nc6 {[%emt 0:00:34]} 23. f4 {[%emt 0:00:56]} Rh4 {[%emt 0:00:31]} 24. f5 {[%emt 0:01:51]} Ne5 {[%emt 0:01:03]} 25. Bc2 {[%emt 0:02:26]} Ng4 {[%emt 0:03:37]} 26. Kf1 {[%emt 0:01:43]} Bd7 {[%emt 0:00:12]} 27. Nf3 {[%emt 0:00:46]} Bb5+ {[%emt 0:00:09]} 28. Re2 {[%emt 0:00:35]} Rh1+ {[%emt 0:01:07]} 29. Ng1 {[%emt 0:00:18]} Re8 {[%emt 0:00:14]} 30. Rae1 {[%emt 0:00:05]} Rxe2 {[%emt 0:00:08]} 31. Rxe2 {[%emt 0:00:04]} Bxe2+ {[%emt 0:00:04]} 32. Kxe2 {[%emt 0:00:09]} Rxg1 33. Kf3 {[%emt 0:30:26]} Ne5+ {[%emt 0:00:50]} 34. Kf2 {[%emt 0:00:08]} Ra1 {[%emt 0:00:14]} 35. Bb3 {[%emt 0:00:08]} Rb1 {[%emt 0:00:04]} 36. Bxd5 {[%emt 0:00:11]} Rxb2+ {[%emt 0:00:10]} 37. Kg3 {[%emt 0:00:04]} Rc2 {[%emt 0:00:04]} 38. Kh4 {[%emt 0:01:25]} Rxc3 {[%emt 0:00:11]} 39. Kh5 {[%emt 0:00:14]} c6 {[%emt 0:00:02]} 40. Bb3 {[%emt 0:00:00]} Rg3 {[%emt 0:00:00]} 41. Kh4 {[%emt 0:02:30]} Rxg2 {[%emt 0:00:09]} 42. Kh3 {[%emt 0:03:14]} Rf2 {[%emt 0:00:45]} 43. Kg3 {[%emt 0:00:13]} Rxf5 {[%emt 0:00:05]} 44. Bc2 {[%emt 0:00:04]} Rf3+ {[%emt 0:00:04]} 45. Kg2 {[%emt 0:00:05]} Rc3 {[%emt 0:00:04]} 46. Bb3 {[%emt 0:00:04]} Rxb3 {[%emt 0:00:06]} 47. axb3 {[%emt 0:00:06]} b5 48. Kg3 {[%emt 0:09:37]} a5 {[%emt 0:00:09]} 49. Kf2 {[%emt 0:00:10]} a4 {[%emt 0:00:05]} 50. bxa4 {[%emt 0:00:11]} bxa4 {[%emt 0:00:03]} 51. Ke3 {[%emt 0:00:11]} a3 {[%emt 0:00:05]} 52. Kd2 {[%emt 0:00:04]} Nc4+ {[%emt 0:00:11]} 53. Kc3 {[%emt 0:00:13]} a2 {[%emt 0:00:05]} 54. Kxc4 {[%emt 0:00:03]} a1=Q {[%emt 0:00:08]} 55. Kc5 {[%emt 0:00:11]} Kc7 {[%emt 0:00:11]} 56. Kc4 {[%emt 0:00:05]} Qa5 {[%emt 0:00:05]} 57. Kd3 {[%emt 0:00:06]} Qe5 {[%emt 0:00:11]} 58. Kc4 {[%emt 0:00:10]} Qd5+ {[%emt 0:00:04]} 59. Kc3 {[%emt 0:00:07]} Qe4 {[%emt 0:00:27]} 60. Kd2 {[%emt 0:00:05]} Qf3 {[%emt 0:00:06]} 61. Ke1 {[%emt 0:00:05]} Qg2 {[%emt 0:00:14]} 62. Kd1 {[%emt 0:02:14]} Kd6 {[%emt 0:00:05]} 63. Kc1 {[%emt 0:00:03]} Kc5 {[%emt 0:00:03]} 64. Kb1 {[%emt 0:00:02]} Kc4 {[%emt 0:00:04]} 65. Ka1 {[%emt 0:00:04]} Kb3 {[%emt 0:00:04]} 66. Kb1 {[%emt 0:12:21]} Qg1# {[%emt 0:00:08]} 0-1

[Event "IIFL Wealth  4th Mumbai Junior U-13"]
[Site "Mumbai"]
[Date "2019.01.05"]
[Round "7"]
[White "Arushi Srichandan"]
[Black "Shreyas Seshadri Nallore"]
[Result "0-1"]
[ECO "C28"]
[WhiteElo "1100"]
[BlackElo "1343"]
[Annotator "NA RC"]
[PlyCount "100"]
[EventDate "2018.12.30"]
[EventType "swiss"]
[EventCountry "IND"]
[SourceTitle "playchess.com"]
[Source "ChessBase"]
[SourceQuality "1"]
[TimeControl "40/5400+30:1800+30"]

1. e4 {[%emt 0:00:00]} e5 {[%emt 0:00:00]} 2. Bc4 {[%emt 0:00:00]} Nf6 {[%emt 0:00:00]} 3. Nc3 {[%emt 0:00:00]} Nc6 {[%emt 0:00:00]} 4. d3 {[%emt 0:00:00]} h6 {[%emt 0:00:02]} 5. f4 {[%emt 0:00:01]} d6 {[%emt 0:00:47]} 6. f5 {[%emt 0:00:36]} Na5 {[%emt 0:02:30]} 7. Bb3 {[%emt 0:00:16]} Nxb3 {[%emt 0:00:25]} 8. axb3 {[%emt 0:00:39]} d5 {[%emt 0:05:32]} 9. Nf3 {[%emt 0:04:06]} dxe4 {[%emt 0:02:59]} 10. dxe4 {[%emt 0:00:10]} Qxd1+ {[%emt 0:00:49]} 11. Kxd1 {[%emt 0:00:13]} Bd6 {[%emt 0:00:49]} 12. Re1 {[%emt 0:01:37]} Bd7 {[%emt 0:00:37]} 13. Nd2 {[%emt 0:02:31]} a6 {[%emt 0:01:16]} 14. Nc4 {[%emt 0:00:24]} O-O-O {[%emt 0:01:09]} 15. Nxd6+ {[%emt 0:01:25]} cxd6 {[%emt 0:00:01]} 16. Be3 {[%emt 0:00:51]} Bc6 {[%emt 0:03:58]} 17. Bb6 {[%emt 0:00:59]} Rd7 {[%emt 0:00:08]} 18. b4 {[%emt 0:03:25]} Kb8 {[%emt 0:02:57]} 19. Kd2 {[%emt 0:03:46]} d5 {[%emt 0:07:25]} 20. exd5 {[%emt 0:00:46]} Nxd5 {[%emt 0:00:10]} 21. Nxd5 {[%emt 0:02:56]} Rxd5+ {[%emt 0:02:02]} 22. Kc3 {[%emt 0:02:49]} Bd7 {[%emt 0:07:48]} 23. Rad1 {[%emt 0:01:28]} Rxd1 {[%emt 0:01:39]} 24. Rxd1 {[%emt 0:00:15]} Bxf5 {[%emt 0:00:53]} 25. Kb3 {[%emt 0:00:30]} Re8 {[%emt 0:02:15]} 26. Rd8+ {[%emt 0:04:14]} Rxd8 {[%emt 0:00:27]} 27. Bxd8 {[%emt 0:00:44]} Kc8 {[%emt 0:00:21]} 28. Be7 {[%emt 0:00:08]} h5 {[%emt 0:00:16]} 29. c3 {[%emt 0:00:20]} Kd7 {[%emt 0:00:07]} 30. Bc5 {[%emt 0:00:29]} Ke6 {[%emt 0:00:07]} 31. c4 {[%emt 0:00:22]} Be4 {[%emt 0:00:04]} 32. g3 {[%emt 0:00:36]} Kf5 {[%emt 0:00:08]} 33. h3 {[%emt 0:01:00]} Bg2 {[%emt 0:00:19]} 34. h4 {[%emt 0:00:08]} Kg4 {[%emt 0:00:16]} 35. Bf2 {[%emt 0:00:11]} Kf3 {[%emt 0:00:04]} 36. Be1 {[%emt 0:00:06]} Ke2 {[%emt 0:00:07]} 37. Bc3 {[%emt 0:00:26]} f6 {[%emt 0:00:01]} 38. Kc2 {[%emt 0:01:47]} Be4+ {[%emt 0:00:17]} 39. Kc1 {[%emt 0:06:16]} Kf2 {[%emt 0:00:05]} 40. Kd1 {[%emt 0:00:00]} Kxg3 {[%emt 0:00:00]} 41. Be1+ {[%emt 0:01:42]} Kf4 {[%emt 0:00:17]} 42. Ke2 {[%emt 0:00:36]} f5 {[%emt 0:00:03]} 43. Bd2+ {[%emt 0:01:23]} Kg4 {[%emt 0:00:06]} 44. Bg5 {[%emt 0:00:36]} f4 {[%emt 0:00:24]} 45. Kf2 {[%emt 0:02:05]} Bd3 {[%emt 0:00:04]} 46. c5 {[%emt 0:00:35]} e4 {[%emt 0:00:03]} 47. Be7 {[%emt 0:07:55]} e3+ {[%emt 0:00:10]} 48. Ke1 {[%emt 0:00:12]} f3 {[%emt 0:00:00]} 49. Bg5 {[%emt 0:02:17]} f2+ {[%emt 0:00:01]} 50. Kd1 {[%emt 0:00:08]} f1=R# 0-1

[Event "IIFL Wealth  4th Mumbai Junior U-13"]
[Site "Mumbai"]
[Date "2019.01.05"]
[Round "7"]
[White "Jai Adithya S"]
[Black "Anirudh Satish"]
[Result "0-1"]
[ECO "C54"]
[WhiteElo "1100"]
[BlackElo "1101"]
[Annotator "NA RC"]
[PlyCount "70"]
[EventDate "2018.12.30"]
[EventType "swiss"]
[EventCountry "IND"]
[SourceTitle "playchess.com"]
[Source "ChessBase"]
[SourceQuality "1"]
[TimeControl "40/5400+30:1800+30"]

1. e4 {[%emt 0:00:00]} e5 {[%emt 0:00:00]} 2. Nf3 {[%emt 0:00:00]} Nc6 {[%emt 0:00:00]} 3. Bc4 {[%emt 0:00:00]} Bc5 {[%emt 0:00:00]} 4. c3 {[%emt 0:00:07]} Nf6 {[%emt 0:00:13]} 5. d3 {[%emt 0:00:09]} O-O {[%emt 0:00:14]} 6. Bg5 {[%emt 0:01:55]} h6 {[%emt 0:00:26]} 7. Bh4 {[%emt 0:00:09]} Be7 {[%emt 0:00:42]} 8. Nbd2 {[%emt 0:00:52]} d5 {[%emt 0:00:07]} 9. Bxf6 {[%emt 0:02:13]} dxc4 {[%emt 0:00:24]} 10. Bxe7 {[%emt 0:00:09]} Nxe7 {[%emt 0:00:10]} 11. Nxc4 {[%emt 0:00:06]} f6 {[%emt 0:00:07]} 12. d4 {[%emt 0:02:14]} b5 {[%emt 0:00:30]} 13. Na5 {[%emt 0:01:23]} exd4 {[%emt 0:00:31]} 14. Qb3+ {[%emt 0:00:55]} Kh8 {[%emt 0:00:13]} 15. Nxd4 {[%emt 0:00:29]} c5 {[%emt 0:00:34]} 16. Ndc6 {[%emt 0:04:59]} Qc7 {[%emt 0:00:14]} 17. Nxe7 {[%emt 0:01:56]} Qxe7 {[%emt 0:00:13]} 18. O-O {[%emt 0:02:04]} Qc7 {[%emt 0:00:45]} 19. Qd5 {[%emt 0:03:46]} Bh3 {[%emt 0:01:48]} 20. gxh3 {[%emt 0:01:17]} Qxa5 {[%emt 0:00:16]} 21. Qxc5 {[%emt 0:00:47]} Rac8 {[%emt 0:00:27]} 22. Qf5 {[%emt 0:01:16]} Qb6 {[%emt 0:00:44]} 23. Rad1 {[%emt 0:04:20]} b4 {[%emt 0:01:43]} 24. cxb4 {[%emt 0:02:46]} Qxb4 {[%emt 0:00:09]} 25. b3 {[%emt 0:00:24]} Qa3 {[%emt 0:00:26]} 26. Rd2 {[%emt 0:03:52]} Rc1 {[%emt 0:00:22]} 27. Qd5 {[%emt 0:02:04]} Rc5 {[%emt 0:00:40]} 28. Qd6 {[%emt 0:01:59]} Rfc8 {[%emt 0:00:12]} 29. Rc2 {[%emt 0:01:14]} Rg5+ {[%emt 0:00:19]} 30. Kh1 {[%emt 0:00:40]} Qxd6 {[%emt 0:00:12]} 31. Rxc8+ {[%emt 0:00:11]} Kh7 {[%emt 0:00:07]} 32. Rfc1 {[%emt 0:00:46]} Qf4 {[%emt 0:00:23]} 33. R8c3 {[%emt 0:00:56]} Qxe4+ {[%emt 0:00:25]} 34. f3 {[%emt 0:00:07]} Qe2 {[%emt 0:00:45]} 35. R1c2 {[%emt 0:01:28]} Qf1# {[%emt 0:00:12]} 0-1